[Event "Titled Tuesday Blitz August 16 Early 2022"]
[White "Timofeev, Artyom"]
[Black "Vachylia, Andrii"]
[WhiteFideId "4140419"]
[BlackFideId "14137224"]
[WhiteElo "2578"]
[BlackElo "2318"]
[Result "0-1"]
[Round "02"]
[TimeControl "180+1"]
[Date "2022.08.16"]
[WhiteClock "0:00:02"]
[BlackClock "0:00:06"]

1. e4 {[%clk 0:03:00]}  c5 {[%clk 0:02:59]} 2. Nc3 {[%clk 0:02:59]}  d6 {[%clk 0:03:00]} 3. Nf3 {[%clk 0:02:58]}  Nf6 {[%clk 0:02:58]} 4. Bc4 {[%clk 0:02:56]}  e6 {[%clk 0:02:58]} 5. O-O {[%clk 0:02:55]}  Be7 {[%clk 0:02:58]} 6. Re1 {[%clk 0:02:55]}  O-O {[%clk 0:02:57]} 7. d3 {[%clk 0:02:55]}  Nc6 {[%clk 0:02:55]} 8. Bb3 {[%clk 0:02:54]}  a6 {[%clk 0:02:54]} 9. Bf4 {[%clk 0:02:52]}  b5 {[%clk 0:02:52]} 10. a4 {[%clk 0:02:51]}  b4 {[%clk 0:02:51]} 11. Ne2 {[%clk 0:02:51]}  d5 {[%clk 0:02:50]} 12. Ng3 {[%clk 0:02:49]}  Bb7 {[%clk 0:02:46]} 13. Bg5 {[%clk 0:02:39]}  h6 {[%clk 0:02:40]} 14. Bf4 {[%clk 0:02:33]}  Na5 {[%clk 0:02:35]} 15. Qe2 {[%clk 0:02:31]}  Rc8 {[%clk 0:02:24]} 16. exd5 {[%clk 0:02:29]}  Nxb3 {[%clk 0:02:25]} 17. cxb3 {[%clk 0:02:28]}  Bxd5 {[%clk 0:02:25]} 18. Nd2 {[%clk 0:02:26]}  Bd6 {[%clk 0:02:11]} 19. Be5 {[%clk 0:02:16]}  Bxe5 {[%clk 0:02:05]} 20. Qxe5 {[%clk 0:02:16]}  Nd7 {[%clk 0:02:05]} 21. Qe3 {[%clk 0:02:15]}  Qf6 {[%clk 0:02:05]} 22. Rab1 {[%clk 0:02:09]}  Rfd8 {[%clk 0:02:04]} 23. Nge4 {[%clk 0:02:09]}  Qe7 {[%clk 0:02:03]} 24. Nc4 {[%clk 0:02:07]}  Nb8 {[%clk 0:01:54]} 25. Nb6 {[%clk 0:02:04]}  Rc6 {[%clk 0:01:54]} 26. Nc4 {[%clk 0:02:00]}  Rcc8 {[%clk 0:01:54]} 27. Rbc1 {[%clk 0:01:52]}  Qc7 {[%clk 0:01:30]} 28. a5 {[%clk 0:01:47]}  Bxc4 {[%clk 0:01:27]} 29. Rxc4 {[%clk 0:01:46]}  Nd7 {[%clk 0:01:25]} 30. d4 {[%clk 0:01:42]}  cxd4 {[%clk 0:01:16]} 31. Qxd4 {[%clk 0:01:42]}  Qe5 {[%clk 0:01:16]} 32. Rxc8 {[%clk 0:01:20]}  Qxd4 {[%clk 0:01:14]} 33. Rxd8+ {[%clk 0:01:20]}  Kh7 {[%clk 0:01:15]} 34. h3 {[%clk 0:01:18]}  Qd5 {[%clk 0:01:07]} 35. h4 {[%clk 0:00:43]}  Kg6 {[%clk 0:00:58]} 36. Ng3 {[%clk 0:00:40]}  Qc6 {[%clk 0:00:55]} 37. h5+ {[%clk 0:00:37]}  Kh7 {[%clk 0:00:50]} 38. Rd1 {[%clk 0:00:32]}  Nf6 {[%clk 0:00:48]} 39. Rb8 {[%clk 0:00:31]}  Qc5 {[%clk 0:00:45]} 40. Ra8 {[%clk 0:00:26]}  Qxa5 {[%clk 0:00:43]} 41. Rdd8 {[%clk 0:00:24]}  g5 {[%clk 0:00:38]} 42. hxg6+ {[%clk 0:00:24]}  Kxg6 {[%clk 0:00:38]} 43. Rd1 {[%clk 0:00:23]}  Qa2 {[%clk 0:00:35]} 44. Nf1 {[%clk 0:00:21]}  Qxb3 {[%clk 0:00:34]} 45. Ne3 {[%clk 0:00:21]}  Nd5 {[%clk 0:00:28]} 46. Re1 {[%clk 0:00:20]}  Nf6 {[%clk 0:00:21]} 47. Rxa6 {[%clk 0:00:19]}  Qxb2 {[%clk 0:00:22]} 48. Rb6 {[%clk 0:00:19]}  b3 {[%clk 0:00:18]} 49. Nc4 {[%clk 0:00:17]}  Qc3 {[%clk 0:00:18]} 50. Ne5+ {[%clk 0:00:18]}  Kg7 {[%clk 0:00:18]} 51. Nf3 {[%clk 0:00:18]}  Nd5 {[%clk 0:00:16]} 52. Rb7 {[%clk 0:00:18]}  Nb4 {[%clk 0:00:16]} 53. Rb1 {[%clk 0:00:11]}  b2 {[%clk 0:00:16]} 54. Kh2 {[%clk 0:00:11]}  Nd3 {[%clk 0:00:16]} 55. Rd1 {[%clk 0:00:07]}  Nxf2 {[%clk 0:00:13]} 56. Rdd7 {[%clk 0:00:07]}  Qf6 {[%clk 0:00:08]} 57. Rd2 {[%clk 0:00:03]}  Ng4+ {[%clk 0:00:07]} 58. Kg1 {[%clk 0:00:02]}  Qc3 {[%clk 0:00:06]} 59. Rdxb2 {[%clk 0:00:02]}  Qc1+ {[%clk 0:00:06]} 60. Ne1 {[%clk 0:00:02]}  Qxe1# {[%clk 0:00:06]} 0-1


[Site "https://www.chess.com"]

[Event "Titled Tuesday Blitz August 16 Early 2022"]
[White "Tristan, Leonardo"]
[Black "Kambrath, Yannick"]
[WhiteFideId "113816"]
[BlackFideId "20632525"]
[WhiteElo "2404"]
[BlackElo "2236"]
[Result "1-0"]
[Round "02"]
[TimeControl "180+1"]
[Date "2022.08.16"]
[WhiteClock "0:00:45"]
[BlackClock "0:00:03"]

1. d4 {[%clk 0:03:00]}  d5 {[%clk 0:02:53]} 2. Nf3 {[%clk 0:03:01]}  Nf6 {[%clk 0:02:51]} 3. Bf4 {[%clk 0:03:01]}  c5 {[%clk 0:02:47]} 4. e3 {[%clk 0:03:01]}  Nc6 {[%clk 0:02:47]} 5. Nbd2 {[%clk 0:03:02]}  Bg4 {[%clk 0:02:44]} 6. c3 {[%clk 0:03:01]}  e6 {[%clk 0:02:43]} 7. Qb3 {[%clk 0:03:01]}  Qc8 {[%clk 0:02:43]} 8. Nh4 {[%clk 0:03:01]}  h6 {[%clk 0:02:41]} 9. h3 {[%clk 0:03:01]}  Bh5 {[%clk 0:02:40]} 10. g4 {[%clk 0:03:01]}  g5 {[%clk 0:02:40]} 11. Bg3 {[%clk 0:02:49]}  gxh4 {[%clk 0:02:40]} 12. Bxh4 {[%clk 0:02:50]}  Nxg4 {[%clk 0:02:37]} 13. hxg4 {[%clk 0:02:43]}  Bxg4 {[%clk 0:02:38]} 14. dxc5 {[%clk 0:02:36]}  Bxc5 {[%clk 0:02:32]} 15. Qa4 {[%clk 0:02:37]}  Bf5 {[%clk 0:02:29]} 16. Bf6 {[%clk 0:02:34]}  Rh7 {[%clk 0:02:15]} 17. Qf4 {[%clk 0:02:33]}  h5 {[%clk 0:02:10]} 18. e4 {[%clk 0:02:28]}  Bg6 {[%clk 0:02:03]} 19. exd5 {[%clk 0:02:22]}  exd5 {[%clk 0:02:04]} 20. Bh3 {[%clk 0:02:22]}  Qb8 {[%clk 0:01:58]} 21. Qf3 {[%clk 0:02:15]}  Be7 {[%clk 0:01:55]} 22. O-O-O {[%clk 0:02:12]}  Kf8 {[%clk 0:01:47]} 23. Nb3 {[%clk 0:01:48]}  Bxf6 {[%clk 0:01:36]} 24. Qxf6 {[%clk 0:01:48]}  Qe5 {[%clk 0:01:37]} 25. Qxe5 {[%clk 0:01:45]}  Nxe5 {[%clk 0:01:38]} 26. Nc5 {[%clk 0:01:35]}  b6 {[%clk 0:01:34]} 27. Rxd5 {[%clk 0:01:35]}  Re8 {[%clk 0:01:12]} 28. Rxe5 {[%clk 0:01:27]}  bxc5 {[%clk 0:01:11]} 29. Rhe1 {[%clk 0:01:13]}  Rxe5 {[%clk 0:01:06]} 30. Rxe5 {[%clk 0:01:14]}  c4 {[%clk 0:01:06]} 31. Rc5 {[%clk 0:01:08]}  Bd3 {[%clk 0:01:06]} 32. Rc8+ {[%clk 0:01:09]}  Kg7 {[%clk 0:01:06]} 33. Rc7 {[%clk 0:01:09]}  Rh6 {[%clk 0:01:04]} 34. Kd2 {[%clk 0:01:06]}  Re6 {[%clk 0:01:03]} 35. b3 {[%clk 0:01:02]}  Re2+ {[%clk 0:01:02]} 36. Kd1 {[%clk 0:01:02]}  Rxf2 {[%clk 0:00:59]} 37. bxc4 {[%clk 0:01:03]}  Rxa2 {[%clk 0:00:59]} 38. c5 {[%clk 0:01:03]}  Kf6 {[%clk 0:00:51]} 39. c6 {[%clk 0:01:01]}  Bc2+ {[%clk 0:00:44]} 40. Ke1 {[%clk 0:01:00]}  Be4 {[%clk 0:00:20]} 41. Bd7 {[%clk 0:01:00]}  Rc2 {[%clk 0:00:19]} 42. Rxa7 {[%clk 0:00:57]}  Rxc3 {[%clk 0:00:19]} 43. c7 {[%clk 0:00:57]}  Bf5 {[%clk 0:00:14]} 44. Ra6+ {[%clk 0:00:56]}  Ke7 {[%clk 0:00:13]} 45. Bxf5 {[%clk 0:00:55]}  Rxc7 {[%clk 0:00:13]} 46. Kf2 {[%clk 0:00:55]}  Rc3 {[%clk 0:00:13]} 47. Be4 {[%clk 0:00:51]}  Kf8 {[%clk 0:00:12]} 48. Ra7 {[%clk 0:00:50]}  Kg7 {[%clk 0:00:13]} 49. Bd5 {[%clk 0:00:51]}  Kg6 {[%clk 0:00:12]} 50. Bxf7+ {[%clk 0:00:51]}  Kg5 {[%clk 0:00:12]} 51. Ra5+ {[%clk 0:00:52]}  Kf6 {[%clk 0:00:11]} 52. Bxh5 {[%clk 0:00:52]}  Rc2+ {[%clk 0:00:10]} 53. Ke3 {[%clk 0:00:51]}  Rc3+ {[%clk 0:00:10]} 54. Kd4 {[%clk 0:00:51]}  Rc6 {[%clk 0:00:09]} 55. Bf3 {[%clk 0:00:51]}  Re6 {[%clk 0:00:10]} 56. Bg4 {[%clk 0:00:49]}  Re1 {[%clk 0:00:10]} 57. Rf5+ {[%clk 0:00:49]}  Kg6 {[%clk 0:00:09]} 58. Rf2 {[%clk 0:00:49]}  Kg5 {[%clk 0:00:09]} 59. Be2 {[%clk 0:00:48]}  Ra1 {[%clk 0:00:07]} 60. Bd3 {[%clk 0:00:45]}  Ra4+ {[%clk 0:00:07]} 61. Bc4 {[%clk 0:00:45]}  Ra1 {[%clk 0:00:07]} 62. Bd5 {[%clk 0:00:44]}  Ra4+ {[%clk 0:00:06]} 63. Ke5 {[%clk 0:00:45]}  Rb4 {[%clk 0:00:05]} 64. Rg2+ {[%clk 0:00:45]}  Rg4 {[%clk 0:00:06]} 65. Rh2 {[%clk 0:00:44]}  Rg1 {[%clk 0:00:06]} 66. Ke4 {[%clk 0:00:44]}  Re1+ {[%clk 0:00:06]} 67. Kd4 {[%clk 0:00:45]}  Rd1+ {[%clk 0:00:06]} 68. Ke5 {[%clk 0:00:45]}  Re1+ {[%clk 0:00:06]} 69. Be4 {[%clk 0:00:46]}  Rg1 {[%clk 0:00:06]} 70. Rh8 {[%clk 0:00:45]}  Ra1 {[%clk 0:00:04]} 71. Rg8+ {[%clk 0:00:45]}  Kh6 {[%clk 0:00:03]} 72. Bf5 {[%clk 0:00:45]} 1-0


[Site "https://www.chess.com"]

[Event "Titled Tuesday Blitz August 16 Early 2022"]
[White "Urbina Perez, Juan Antonio"]
[Black "Nugumanov, Bakhtiyar"]
[WhiteFideId "2217368"]
[BlackFideId "13701797"]
[WhiteElo "2192"]
[BlackElo "2287"]
[Result "1/2-1/2"]
[Round "02"]
[TimeControl "180+2"]
[Date "2022.08.18"]
[WhiteClock "0:00:00"]
[BlackClock "0:00:00"]

1. Nf3 {[%clk 0:00:00]}  d5 {[%clk 0:00:00]} 2. e3 {[%clk 0:00:00]}  e6 {[%clk 0:00:00]} 3. b3 {[%clk 0:00:00]}  Nf6 {[%clk 0:00:00]} 4. Be2 {[%clk 0:00:00]}  Be7 {[%clk 0:00:00]} 5. Ba3 {[%clk 0:00:00]}  O-O {[%clk 0:00:00]} 6. Bxe7 {[%clk 0:00:00]}  Qxe7 {[%clk 0:00:00]} 7. O-O {[%clk 0:00:00]}  c5 {[%clk 0:00:00]} 8. c4 {[%clk 0:00:00]}  Nc6 {[%clk 0:00:00]} 9. cxd5 {[%clk 0:00:00]}  exd5 {[%clk 0:00:00]} 10. d4 {[%clk 0:00:00]}  Bg4 {[%clk 0:00:00]} 11. Nc3 {[%clk 0:00:00]}  Rfd8 {[%clk 0:00:00]} 12. h3 {[%clk 0:00:00]}  Bxf3 {[%clk 0:00:00]} 13. Bxf3 {[%clk 0:00:00]}  cxd4 {[%clk 0:00:00]} 14. exd4 {[%clk 0:00:00]}  Qb4 {[%clk 0:00:00]} 15. Rc1 {[%clk 0:00:00]}  Nxd4 {[%clk 0:00:00]} 16. Qd3 {[%clk 0:00:00]}  Nxf3+ {[%clk 0:00:00]} 17. Qxf3 {[%clk 0:00:00]}  Rac8 {[%clk 0:00:00]} 18. Nxd5 {[%clk 0:00:00]}  Nxd5 {[%clk 0:00:00]} 19. Rxc8 {[%clk 0:00:00]}  Rxc8 {[%clk 0:00:00]} 20. Qxd5 {[%clk 0:00:00]}  h6 {[%clk 0:00:00]} 21. Qd3 {[%clk 0:00:00]}  Qc3 {[%clk 0:00:00]} 22. Qxc3 {[%clk 0:00:00]}  Rxc3 {[%clk 0:00:00]} 23. Rd1 {[%clk 0:00:00]}  Rc2 {[%clk 0:00:00]} 24. Rd8+ {[%clk 0:00:00]}  Kh7 {[%clk 0:00:00]} 25. Rd7 {[%clk 0:00:00]}  Rxa2 {[%clk 0:00:00]} 26. Rxf7 {[%clk 0:00:00]}  b6 {[%clk 0:00:00]} 27. Rb7 {[%clk 0:00:00]}  Ra3 {[%clk 0:00:00]} 28. Kh2 {[%clk 0:00:00]}  Rxb3 {[%clk 0:00:00]} 29. Rxa7 {[%clk 0:00:00]}  Rb2 {[%clk 0:00:00]} 30. Kg3 {[%clk 0:00:00]}  Rb3+ {[%clk 0:00:00]} 31. f3 {[%clk 0:00:00]}  Rb2 {[%clk 0:00:00]} 32. Rb7 {[%clk 0:00:00]}  b5 {[%clk 0:00:00]} 33. h4 {[%clk 0:00:00]}  Kg6 {[%clk 0:00:00]} 34. Rb6+ {[%clk 0:00:00]}  Kf5 {[%clk 0:00:00]} 35. Kh3 {[%clk 0:00:00]}  h5 {[%clk 0:00:00]} 36. Rb7 {[%clk 0:00:00]}  Kg6 {[%clk 0:00:00]} 37. Rb6+ {[%clk 0:00:00]}  Kf5 {[%clk 0:00:00]} 38. Kg3 {[%clk 0:00:00]}  Rb4 {[%clk 0:00:00]} 39. Rb8 {[%clk 0:00:00]}  Rb2 {[%clk 0:00:00]} 40. Rf8+ {[%clk 0:00:00]}  Kg6 {[%clk 0:00:00]} 41. Rc8 {[%clk 0:00:00]}  Rb4 {[%clk 0:00:00]} 42. Rc5 {[%clk 0:00:00]}  Rb2 {[%clk 0:00:00]} 43. Rg5+ {[%clk 0:00:00]}  Kh6 {[%clk 0:00:00]} 44. Kf4 {[%clk 0:00:00]}  Rb4+ {[%clk 0:00:00]} 45. Kf5 {[%clk 0:00:00]}  Rxh4 {[%clk 0:00:00]} 46. Rg6+ {[%clk 0:00:00]}  Kh7 {[%clk 0:00:00]} 47. Rb6 {[%clk 0:00:00]}  Rb4 {[%clk 0:00:00]} 48. g3 {[%clk 0:00:00]}  Ra4 {[%clk 0:00:00]} 49. Rxb5 {[%clk 0:00:00]}  g6+ {[%clk 0:00:00]} 50. Kg5 {[%clk 0:00:00]}  Ra7 {[%clk 0:00:00]} 51. f4 {[%clk 0:00:00]}  Rf7 {[%clk 0:00:00]} 52. Rc5 {[%clk 0:00:00]}  Kg7 {[%clk 0:00:00]} 53. Rd5 {[%clk 0:00:00]}  Kg8 {[%clk 0:00:00]} 54. Kh6 {[%clk 0:00:00]}  h4 {[%clk 0:00:00]} 55. Rd8+ {[%clk 0:00:00]}  Rf8 {[%clk 0:00:00]} 56. Rxf8+ {[%clk 0:00:00]}  Kxf8 {[%clk 0:00:00]} 57. gxh4 {[%clk 0:00:00]}  Kf7 {[%clk 0:00:00]} 58. Kg5 {[%clk 0:00:00]}  Kg7 {[%clk 0:00:00]} 59. h5 {[%clk 0:00:00]}  gxh5 {[%clk 0:00:00]} 60. Kxh5 {[%clk 0:00:00]}  Kf6 {[%clk 0:00:00]} 61. Kg4 {[%clk 0:00:00]}  Kg6 {[%clk 0:00:00]} 62. Kf3 {[%clk 0:00:00]}  Kf6 {[%clk 0:00:00]} 63. Ke4 {[%clk 0:00:00]}  Ke6 {[%clk 0:00:00]} 64. Ke3 {[%clk 0:00:00]}  Kf6 {[%clk 0:00:00]} 65. Kf3 {[%clk 0:00:00]}  Kf5 {[%clk 0:00:00]} 66. Kg3 {[%clk 0:00:00]}  Kf6 {[%clk 0:00:00]} 67. Kg4 {[%clk 0:00:00]}  Kg6 {[%clk 0:00:00]} 68. f5+ {[%clk 0:00:00]}  Kf6 {[%clk 0:00:00]} 69. Kf4 {[%clk 0:00:00]}  Kf7 {[%clk 0:00:00]} 70. Kg5 {[%clk 0:00:00]}  Kg7 {[%clk 0:00:00]} 71. f6+ {[%clk 0:00:00]}  Kf7 {[%clk 0:00:00]} 72. Kf5 {[%clk 0:00:00]}  Kf8 {[%clk 0:00:00]} 73. Ke6 {[%clk 0:00:00]}  Ke8 {[%clk 0:00:00]} 74. Ke5 {[%clk 0:00:00]}  Kf7 {[%clk 0:00:00]} 75. Kf5 {[%clk 0:00:00]}  Kf8 {[%clk 0:00:00]} 76. Kg6 {[%clk 0:00:00]}  Kg8 {[%clk 0:00:00]} 77. Kg5 {[%clk 0:00:00]}  Kf8 {[%clk 0:00:00]} 78. Kf5 {[%clk 0:00:00]}  Kf7 {[%clk 0:00:00]} 79. Ke5 {[%clk 0:00:00]}  Kf8 {[%clk 0:00:00]} 80. Kf5 {[%clk 0:00:00]}  Kf7 {[%clk 0:00:00]} 81. Kg5 {[%clk 0:00:00]}  Kf8 {[%clk 0:00:00]} 82. Kg6 {[%clk 0:00:00]}  Kg8 {[%clk 0:00:00]} 83. f7+ {[%clk 0:00:00]}  Kf8 {[%clk 0:00:00]} 84. Kf6 {[%clk 0:00:00]} 1/2-1/2


[Site "https://www.chess.com"]

[Event "Titled Tuesday Blitz August 16 Early 2022"]
[White "Veiga, Jose Francisco R P Neves"]
[Black "Fernandez Hernandez, Gerardo"]
[WhiteFideId "1930087"]
[BlackFideId "2207400"]
[WhiteElo "2273"]
[BlackElo "2169"]
[Result "1-0"]
[Round "02"]
[TimeControl "180+2"]
[Date "2022.08.18"]
[WhiteClock "0:00:00"]
[BlackClock "0:00:00"]

1. e4 {[%clk 0:00:00]}  e6 {[%clk 0:00:00]} 2. d4 {[%clk 0:00:00]}  d5 {[%clk 0:00:00]} 3. Nc3 {[%clk 0:00:00]}  Nc6 {[%clk 0:00:00]} 4. Nf3 {[%clk 0:00:00]}  Nf6 {[%clk 0:00:00]} 5. e5 {[%clk 0:00:00]}  Ne4 {[%clk 0:00:00]} 6. Bd3 {[%clk 0:00:00]}  Bb4 {[%clk 0:00:00]} 7. Bd2 {[%clk 0:00:00]}  Nxd2 {[%clk 0:00:00]} 8. Qxd2 {[%clk 0:00:00]}  f6 {[%clk 0:00:00]} 9. O-O {[%clk 0:00:00]}  fxe5 {[%clk 0:00:00]} 10. Nxe5 {[%clk 0:00:00]}  Nxe5 {[%clk 0:00:00]} 11. dxe5 {[%clk 0:00:00]}  d4 {[%clk 0:00:00]} 12. Qf4 {[%clk 0:00:00]}  Bxc3 {[%clk 0:00:00]} 13. bxc3 {[%clk 0:00:00]}  dxc3 {[%clk 0:00:00]} 14. Rad1 {[%clk 0:00:00]}  Qe7 {[%clk 0:00:00]} 15. Bb5+ {[%clk 0:00:00]}  c6 {[%clk 0:00:00]} 16. Bc4 {[%clk 0:00:00]}  Rf8 {[%clk 0:00:00]} 17. Qg3 {[%clk 0:00:00]}  Kf7 {[%clk 0:00:00]} 18. Qxc3 {[%clk 0:00:00]}  Kg8 {[%clk 0:00:00]} 19. Rd6 {[%clk 0:00:00]}  Rd8 {[%clk 0:00:00]} 20. Rfd1 {[%clk 0:00:00]}  Rxd6 {[%clk 0:00:00]} 21. Rxd6 {[%clk 0:00:00]}  Bd7 {[%clk 0:00:00]} 22. Qb3 {[%clk 0:00:00]}  b5 {[%clk 0:00:00]} 23. Rxd7 {[%clk 0:00:00]}  bxc4 {[%clk 0:00:00]} 24. Qb7 {[%clk 0:00:00]}  Rd8 {[%clk 0:00:00]} 25. Rxd8+ {[%clk 0:00:00]}  Qxd8 {[%clk 0:00:00]} 26. h3 {[%clk 0:00:00]}  Qd1+ {[%clk 0:00:00]} 27. Kh2 {[%clk 0:00:00]}  Qxc2 {[%clk 0:00:00]} 28. Qxc6 {[%clk 0:00:00]}  Qd3 {[%clk 0:00:00]} 29. Qe8# {[%clk 0:00:00]} 1-0


[Site "https://www.chess.com"]

[Event "Titled Tuesday Blitz August 16 Early 2022"]
[White "Vlassov, Nikolai"]
[Black "Oparin, Grigoriy"]
[WhiteFideId "4103360"]
[BlackFideId "24125890"]
[WhiteElo "2324"]
[BlackElo "2639"]
[Result "1/2-1/2"]
[Round "02"]
[TimeControl "180+1"]
[Date "2022.08.16"]
[WhiteClock "0:00:13"]
[BlackClock "0:00:12"]

1. e4 {[%clk 0:02:47]}  Nf6 {[%clk 0:02:58]} 2. e5 {[%clk 0:02:47]}  Nd5 {[%clk 0:02:59]} 3. c4 {[%clk 0:02:46]}  Nb6 {[%clk 0:02:59]} 4. d4 {[%clk 0:02:46]}  d6 {[%clk 0:02:59]} 5. exd6 {[%clk 0:02:46]}  cxd6 {[%clk 0:02:59]} 6. Nc3 {[%clk 0:02:46]}  Bf5 {[%clk 0:02:56]} 7. a4 {[%clk 0:02:44]}  e6 {[%clk 0:02:54]} 8. a5 {[%clk 0:02:41]}  N6d7 {[%clk 0:02:54]} 9. Nf3 {[%clk 0:02:42]}  Be7 {[%clk 0:02:54]} 10. Bd3 {[%clk 0:02:38]}  Bxd3 {[%clk 0:02:53]} 11. Qxd3 {[%clk 0:02:39]}  O-O {[%clk 0:02:54]} 12. O-O {[%clk 0:02:39]}  Na6 {[%clk 0:02:54]} 13. Bd2 {[%clk 0:02:35]}  Nb4 {[%clk 0:02:52]} 14. Qe2 {[%clk 0:02:35]}  Rc8 {[%clk 0:02:48]} 15. b3 {[%clk 0:02:33]}  Nf6 {[%clk 0:02:44]} 16. Nb5 {[%clk 0:02:29]}  Nc6 {[%clk 0:02:42]} 17. a6 {[%clk 0:02:29]}  Qb6 {[%clk 0:02:36]} 18. axb7 {[%clk 0:02:28]}  Qxb7 {[%clk 0:02:37]} 19. Bf4 {[%clk 0:02:23]}  Rfd8 {[%clk 0:02:33]} 20. Rfb1 {[%clk 0:02:21]}  a6 {[%clk 0:02:21]} 21. Nc3 {[%clk 0:02:21]}  Nb4 {[%clk 0:02:18]} 22. Bd2 {[%clk 0:02:16]}  Rb8 {[%clk 0:02:12]} 23. Ra4 {[%clk 0:02:15]}  Rdc8 {[%clk 0:02:04]} 24. Rxb4 {[%clk 0:02:05]}  Qxb4 {[%clk 0:02:01]} 25. Nb5 {[%clk 0:02:06]}  Rxb5 {[%clk 0:01:48]} 26. Bxb4 {[%clk 0:02:05]}  Rxb4 {[%clk 0:01:49]} 27. Nd2 {[%clk 0:02:03]}  d5 {[%clk 0:01:46]} 28. c5 {[%clk 0:01:57]}  Rxd4 {[%clk 0:01:45]} 29. b4 {[%clk 0:01:52]}  Ra8 {[%clk 0:01:41]} 30. Nf3 {[%clk 0:01:48]}  Re4 {[%clk 0:01:36]} 31. Qd3 {[%clk 0:01:45]}  Ne8 {[%clk 0:01:33]} 32. g3 {[%clk 0:01:44]}  Nc7 {[%clk 0:01:32]} 33. Nd4 {[%clk 0:01:42]}  Bf6 {[%clk 0:01:32]} 34. Nc6 {[%clk 0:01:42]}  g6 {[%clk 0:01:26]} 35. h4 {[%clk 0:01:41]}  h5 {[%clk 0:01:26]} 36. Rc1 {[%clk 0:01:37]}  Kg7 {[%clk 0:01:25]} 37. f3 {[%clk 0:01:37]}  Rc4 {[%clk 0:01:15]} 38. Rxc4 {[%clk 0:01:36]}  dxc4 {[%clk 0:01:16]} 39. Qxc4 {[%clk 0:01:37]}  Nd5 {[%clk 0:01:16]} 40. g4 {[%clk 0:01:30]}  hxg4 {[%clk 0:01:12]} 41. Qxg4 {[%clk 0:01:29]}  Rh8 {[%clk 0:01:11]} 42. Qc4 {[%clk 0:01:24]}  Rxh4 {[%clk 0:01:09]} 43. Qxa6 {[%clk 0:01:24]}  Nxb4 {[%clk 0:01:09]} 44. Nxb4 {[%clk 0:01:23]}  Rxb4 {[%clk 0:01:10]} 45. c6 {[%clk 0:01:24]}  Rb1+ {[%clk 0:01:09]} 46. Kf2 {[%clk 0:01:21]}  Rc1 {[%clk 0:01:06]} 47. Qb5 {[%clk 0:01:15]}  g5 {[%clk 0:01:00]} 48. Ke3 {[%clk 0:01:15]}  Rc3+ {[%clk 0:00:56]} 49. Ke4 {[%clk 0:01:12]}  Kg6 {[%clk 0:00:48]} 50. f4 {[%clk 0:01:07]}  gxf4 {[%clk 0:00:27]} 51. Kxf4 {[%clk 0:01:07]}  Kg7 {[%clk 0:00:24]} 52. Ke4 {[%clk 0:01:05]}  Kg6 {[%clk 0:00:24]} 53. Kf4 {[%clk 0:00:58]}  Kg7 {[%clk 0:00:24]} 54. Qb7 {[%clk 0:00:54]}  Rc4+ {[%clk 0:00:24]} 55. Ke3 {[%clk 0:00:54]}  Be5 {[%clk 0:00:25]} 56. Qb5 {[%clk 0:00:52]}  Rc3+ {[%clk 0:00:23]} 57. Kd2 {[%clk 0:00:52]}  Kf6 {[%clk 0:00:13]} 58. Qb6 {[%clk 0:00:48]}  Kf5 {[%clk 0:00:09]} 59. Qf2+ {[%clk 0:00:44]}  Ke4 {[%clk 0:00:06]} 60. Qxf7 {[%clk 0:00:33]}  Rxc6 {[%clk 0:00:06]} 61. Qb7 {[%clk 0:00:27]}  Kd5 {[%clk 0:00:06]} 62. Qb5+ {[%clk 0:00:23]}  Kd6 {[%clk 0:00:06]} 63. Qb8+ {[%clk 0:00:23]}  Kd5 {[%clk 0:00:07]} 64. Qb5+ {[%clk 0:00:23]}  Rc5 {[%clk 0:00:07]} 65. Qb7+ {[%clk 0:00:20]}  Kd4 {[%clk 0:00:08]} 66. Qb6 {[%clk 0:00:15]}  Kd5 {[%clk 0:00:05]} 67. Qb7+ {[%clk 0:00:15]}  Kd6 {[%clk 0:00:04]} 68. Qb8+ {[%clk 0:00:15]}  Ke7 {[%clk 0:00:03]} 69. Qb4 {[%clk 0:00:13]}  Bd6 {[%clk 0:00:03]} 70. Qh4+ {[%clk 0:00:13]}  Kd7 {[%clk 0:00:04]} 71. Qh7+ {[%clk 0:00:13]}  Kc6 {[%clk 0:00:04]} 72. Qa7 {[%clk 0:00:13]}  e5 {[%clk 0:00:04]} 73. Kd3 {[%clk 0:00:12]}  Rd5+ {[%clk 0:00:04]} 74. Ke2 {[%clk 0:00:11]}  Rd4 {[%clk 0:00:05]} 75. Qa8+ {[%clk 0:00:12]}  Kc5 {[%clk 0:00:05]} 76. Qa7+ {[%clk 0:00:12]}  Kd5 {[%clk 0:00:06]} 77. Qb7+ {[%clk 0:00:12]}  Ke6 {[%clk 0:00:06]} 78. Qb3+ {[%clk 0:00:12]}  Kf6 {[%clk 0:00:07]} 79. Qf3+ {[%clk 0:00:12]}  Ke7 {[%clk 0:00:07]} 80. Qb7+ {[%clk 0:00:12]}  Ke6 {[%clk 0:00:07]} 81. Qb3+ {[%clk 0:00:12]}  Kf6 {[%clk 0:00:08]} 82. Qf3+ {[%clk 0:00:12]}  Rf4 {[%clk 0:00:09]} 83. Qc6 {[%clk 0:00:12]}  Ke7 {[%clk 0:00:09]} 84. Qb7+ {[%clk 0:00:12]}  Ke6 {[%clk 0:00:10]} 85. Qb3+ {[%clk 0:00:12]}  Kf5 {[%clk 0:00:11]} 86. Qf7+ {[%clk 0:00:12]}  Ke4 {[%clk 0:00:10]} 87. Qc4+ {[%clk 0:00:12]}  Kf5 {[%clk 0:00:11]} 88. Qf7+ {[%clk 0:00:13]}  Ke4 {[%clk 0:00:11]} 89. Qc4+ {[%clk 0:00:13]}  Kf5 {[%clk 0:00:12]} 90. Qf7+ {[%clk 0:00:13]} 1/2-1/2


[Site "https://www.chess.com"]